[Event "*** Titled Tuesday Blitz"]
[Site "Chess.com"]
[Date "2019.03.05"]
[Round "6"]
[White "GM_dmitrij"]
[Black "BlueWizzard"]
[Result "1-0"]
[WhiteElo "2871"]
[BlackElo "2680"]
[TimeControl "180+2"]
[EndTime "14:27:05 PST"]
[Termination "GM_dmitrij won by resignation"]

1. e4 {[%clk 0:03:01.9]} 1... c5 {[%clk 0:02:59.5]} 2. Nf3 {[%clk 0:03:01.4]}
2... g6 {[%clk 0:03:01.4]} 3. d4 {[%clk 0:03:00.3]} 3... cxd4 {[%clk 0:03:03.3]}
4. Nxd4 {[%clk 0:03:02.2]} 4... Nf6 {[%clk 0:03:04.1]} 5. Nc3 {[%clk 0:03:03.8]}
5... d6 {[%clk 0:03:05.9]} 6. Be3 {[%clk 0:03:03.1]} 6... Bg7 {[%clk 0:03:07.4]}
7. f3 {[%clk 0:03:01.4]} 7... Nbd7 {[%clk 0:03:08.8]} 8. Qd2 {[%clk 0:03:00.1]}
8... a6 {[%clk 0:03:07.7]} 9. a4 {[%clk 0:03:00]} 9... h5 {[%clk 0:03:07.5]} 10.
Be2 {[%clk 0:02:56.7]} 10... b6 {[%clk 0:03:07.1]} 11. Nd5 {[%clk 0:02:52.1]}
11... Bb7 {[%clk 0:03:07.7]} 12. c4 {[%clk 0:02:51.6]} 12... Nc5 {[%clk
0:03:07.4]} 13. O-O {[%clk 0:02:49.1]} 13... e5 {[%clk 0:02:52.7]} 14. Nxf6+
{[%clk 0:02:28.7]} 14... Bxf6 {[%clk 0:02:50.9]} 15. Nc2 {[%clk 0:02:23.8]}
15... Nb3 {[%clk 0:02:51.5]} 16. Qb4 {[%clk 0:02:25]} 16... Nxa1 {[%clk
0:02:51.6]} 17. Rxa1 {[%clk 0:02:26.9]} 17... O-O {[%clk 0:02:47.5]} 18. a5
{[%clk 0:02:25.5]} 18... b5 {[%clk 0:02:47]} 19. cxb5 {[%clk 0:02:26.1]} 19...
d5 {[%clk 0:02:43.4]} 20. exd5 {[%clk 0:02:16.4]} 20... Qxd5 {[%clk 0:02:43.2]}
21. Rd1 {[%clk 0:02:10.6]} 21... Qe6 {[%clk 0:02:38.6]} 22. Rd6 {[%clk
0:02:06.6]} 22... Qe7 {[%clk 0:02:35]} 23. Bc5 {[%clk 0:02:06.2]} 23... Rfc8
{[%clk 0:02:24.5]} 24. bxa6 {[%clk 0:01:53]} 24... Rxc5 {[%clk 0:01:56.5]} 25.
axb7 {[%clk 0:01:40.4]} 25... Rac8 {[%clk 0:01:49.6]} 26. bxc8=Q+ {[%clk
0:01:26.4]} 26... Rxc8 {[%clk 0:01:51.5]} 27. Ne3 {[%clk 0:01:16.3]} 27... Bg7
{[%clk 0:01:14.2]} 28. Bc4 {[%clk 0:01:02.7]} 28... Kh7 {[%clk 0:01:01]} 29. Rb6
{[%clk 0:00:50.6]} 29... Qg5 {[%clk 0:00:59.5]} 30. Nf1 {[%clk 0:00:31.7]} 30...
e4 {[%clk 0:00:56.9]} 31. Bxf7 {[%clk 0:00:31.5]} 31... exf3 {[%clk 0:00:43.2]}
32. Rxg6 {[%clk 0:00:24]} 32... f2+ {[%clk 0:00:40.8]} 33. Kxf2 {[%clk
0:00:13.4]} 33... Qf5+ {[%clk 0:00:37.3]} 34. Kg1 {[%clk 0:00:14.8]} 34... Rc1
{[%clk 0:00:33]} 35. Rxg7+ {[%clk 0:00:10]} 35... Kxg7 {[%clk 0:00:33.7]} 36.
Bc4 {[%clk 0:00:11.4]} 36... Qf4 {[%clk 0:00:33.5]} 37. Qb7+ {[%clk 0:00:10.8]}
37... Kh6 {[%clk 0:00:33.9]} 38. Qc6+ {[%clk 0:00:11.9]} 38... Kg5 {[%clk
0:00:33.4]} 39. Qd5+ {[%clk 0:00:12.8]} 39... Kh6 {[%clk 0:00:30.5]} 40. Bd3
{[%clk 0:00:12.8]} 40... Qe3+ {[%clk 0:00:29.7]} 41. Kh1 {[%clk 0:00:12.8]}
41... Qe7 {[%clk 0:00:23.6]} 42. Qf5 {[%clk 0:00:12.7]} 42... Rc6 {[%clk
0:00:21.1]} 43. a6 {[%clk 0:00:13.1]} 43... Rf6 {[%clk 0:00:21.8]} 44. Qh3
{[%clk 0:00:10]} 44... Qe1 {[%clk 0:00:20.4]} 45. g3 {[%clk 0:00:09.4]} 45...
Qd1 {[%clk 0:00:17.7]} 46. Bc4 {[%clk 0:00:08.8]} 46... Qf3+ {[%clk 0:00:18.3]}
47. Qg2 {[%clk 0:00:09.3]} 47... Qg4 {[%clk 0:00:20.2]} 48. Be2 {[%clk 0:00:10]}
48... Qa4 {[%clk 0:00:20.1]} 49. h3 {[%clk 0:00:09.7]} 49... h4 {[%clk
0:00:20.9]} 50. gxh4 {[%clk 0:00:10.5]} 50... Qf4 {[%clk 0:00:21.2]} 51. a7
{[%clk 0:00:09.4]} 51... Rg6 {[%clk 0:00:17.8]} 52. Qxg6+ {[%clk 0:00:10.3]}
52... Kxg6 {[%clk 0:00:18.5]} 53. a8=Q {[%clk 0:00:12.2]} 53... Qf2 {[%clk
0:00:19.7]} 54. Qg2+ {[%clk 0:00:12.9]} 54... Kh6 {[%clk 0:00:21.6]} 55. Qxf2
{[%clk 0:00:13.5]} 1-0

[Event "*** Titled Tuesday Blitz"]
[Site "Chess.com"]
[Date "2019.03.05"]
[Round "6"]
[White "MikaelyanArman"]
[Black "IIIlllII1llIl"]
[Result "0-1"]
[WhiteElo "2706"]
[BlackElo "2595"]
[TimeControl "180+2"]
[EndTime "14:27:12 PST"]
[Termination "IIIlllII1llIl won by resignation"]

1. e4 {[%clk 0:03:01.9]} 1... g6 {[%clk 0:03:00.8]} 2. d4 {[%clk 0:03:02.5]}
2... Bg7 {[%clk 0:03:02]} 3. Nc3 {[%clk 0:03:04.1]} 3... d6 {[%clk 0:03:03.2]}
4. Be3 {[%clk 0:03:05.6]} 4... a6 {[%clk 0:03:03.9]} 5. Qd2 {[%clk 0:03:04.2]}
5... b5 {[%clk 0:03:04.4]} 6. f3 {[%clk 0:03:03.6]} 6... Nd7 {[%clk 0:03:04.7]}
7. h4 {[%clk 0:03:01.4]} 7... h5 {[%clk 0:03:05.3]} 8. Nh3 {[%clk 0:03:01.5]}
8... Bb7 {[%clk 0:03:05.6]} 9. Ng5 {[%clk 0:03:02.1]} 9... e6 {[%clk 0:03:04.5]}
10. O-O-O {[%clk 0:02:57.1]} 10... Ngf6 {[%clk 0:03:05.2]} 11. Bd3 {[%clk
0:02:51.3]} 11... Qe7 {[%clk 0:03:01]} 12. Kb1 {[%clk 0:02:46.6]} 12... Nb6
{[%clk 0:02:14.2]} 13. e5 {[%clk 0:02:28.5]} 13... Nfd5 {[%clk 0:02:05.7]} 14.
Nxd5 {[%clk 0:02:29]} 14... Bxd5 {[%clk 0:01:56.6]} 15. f4 {[%clk 0:02:26]}
15... Nc4 {[%clk 0:01:42.5]} 16. Bxc4 {[%clk 0:02:26.5]} 16... bxc4 {[%clk
0:01:43.2]} 17. c3 {[%clk 0:02:08.7]} 17... a5 {[%clk 0:01:40]} 18. Ka1 {[%clk
0:02:07]} 18... a4 {[%clk 0:01:41]} 19. a3 {[%clk 0:02:08.5]} 19... Rb8 {[%clk
0:01:41.1]} 20. Rhg1 {[%clk 0:01:56.8]} 20... Rb3 {[%clk 0:01:40.6]} 21. Ka2
{[%clk 0:01:47.9]} 21... Kd7 {[%clk 0:01:32.8]} 22. Qe2 {[%clk 0:01:36]} 22...
Rhb8 {[%clk 0:01:22.2]} 23. Bc1 {[%clk 0:01:37]} 23... Kc8 {[%clk 0:00:59.6]}
24. g4 {[%clk 0:01:32.8]} 24... hxg4 {[%clk 0:00:55.5]} 25. Rxg4 {[%clk
0:01:34.7]} 25... Qd7 {[%clk 0:00:51.9]} 26. Qc2 {[%clk 0:00:59]} 26... Bf8
{[%clk 0:00:30.3]} 27. Nh7 {[%clk 0:00:49.7]} 27... Be7 {[%clk 0:00:31.1]} 28.
Nf6 {[%clk 0:00:47.3]} 28... Bxf6 {[%clk 0:00:20.2]} 29. exf6 {[%clk 0:00:49.2]}
29... Qb5 {[%clk 0:00:19]} 30. h5 {[%clk 0:00:45]} 30... gxh5 {[%clk 0:00:05.1]}
31. Rg8+ {[%clk 0:00:42.9]} 31... Kb7 {[%clk 0:00:06.3]} 32. Rxb8+ {[%clk
0:00:42.5]} 32... Kxb8 {[%clk 0:00:08.2]} 33. Rg1 {[%clk 0:00:32.5]} 33... Qb7
{[%clk 0:00:07.7]} 34. Rg7 {[%clk 0:00:28.1]} 34... Be4 {[%clk 0:00:07.7]} 35.
Qd1 {[%clk 0:00:21.5]} 35... Bf5 {[%clk 0:00:04.6]} 36. Rxf7 {[%clk 0:00:19.1]}
36... Qe4 {[%clk 0:00:05.7]} 37. Bd2 {[%clk 0:00:17.8]} 37... Bg6 {[%clk
0:00:05.1]} 38. Rf8+ {[%clk 0:00:18.5]} 38... Kb7 {[%clk 0:00:06]} 39. f7 {[%clk
0:00:19.9]} 39... Qf5 {[%clk 0:00:07.2]} 40. Qh1+ {[%clk 0:00:19.8]} 40... d5
{[%clk 0:00:07.9]} 41. Be3 {[%clk 0:00:11.4]} 41... Bxf7 {[%clk 0:00:06.9]} 42.
Qc1 {[%clk 0:00:08.2]} 42... Qh7 {[%clk 0:00:07.4]} 43. f5 {[%clk 0:00:08.7]}
43... Qxf5 {[%clk 0:00:07.4]} 44. Bf4 {[%clk 0:00:10]} 44... Qh7 {[%clk
0:00:08]} 45. Be5 {[%clk 0:00:10.2]} 45... Bg6 {[%clk 0:00:08.4]} 46. Qf4 {[%clk
0:00:08.2]} 46... Bb1+ {[%clk 0:00:08]} 47. Ka1 {[%clk 0:00:09.1]} 47... Rxb2
{[%clk 0:00:08.5]} 48. Rb8+ {[%clk 0:00:04]} 48... Kxb8 {[%clk 0:00:09.4]} 49.
Qf8+ {[%clk 0:00:02.8]} 49... Kb7 {[%clk 0:00:10.4]} 50. Kxb2 {[%clk 0:00:03.1]}
50... Qc2+ {[%clk 0:00:10.9]} 0-1

[Event "*** Titled Tuesday Blitz"]
[Site "Chess.com"]
[Date "2019.03.05"]
[Round "6"]
[White "kacprekt"]
[Black "Thjop"]
[Result "0-1"]
[WhiteElo "2278"]
[BlackElo "2561"]
[TimeControl "180+2"]
[EndTime "14:27:15 PST"]
[Termination "Thjop won by resignation"]

1. d4 {[%clk 0:03:01.9]} 1... Nf6 {[%clk 0:02:58.5]} 2. c4 {[%clk 0:03:02.2]}
2... e6 {[%clk 0:02:57.8]} 3. Nf3 {[%clk 0:03:03.2]} 3... d5 {[%clk 0:02:57.3]}
4. Nc3 {[%clk 0:03:03]} 4... c6 {[%clk 0:02:58.4]} 5. Bg5 {[%clk 0:02:51.1]}
5... Nbd7 {[%clk 0:02:56.3]} 6. e3 {[%clk 0:02:51]} 6... Be7 {[%clk 0:02:40.3]}
7. Qc2 {[%clk 0:02:50.4]} 7... O-O {[%clk 0:02:40.7]} 8. Rd1 {[%clk 0:02:51.2]}
8... Qa5 {[%clk 0:02:29.9]} 9. a3 {[%clk 0:02:42.8]} 9... dxc4 {[%clk
0:02:16.7]} 10. Bxc4 {[%clk 0:02:43.2]} 10... b5 {[%clk 0:01:55.4]} 11. Bd3
{[%clk 0:02:40.5]} 11... Bb7 {[%clk 0:01:51.5]} 12. e4 {[%clk 0:02:33]} 12... h6
{[%clk 0:01:50.6]} 13. Bh4 {[%clk 0:02:31.7]} 13... Qb6 {[%clk 0:01:43.1]} 14.
O-O {[%clk 0:02:27.5]} 14... a6 {[%clk 0:01:42.5]} 15. e5 {[%clk 0:02:25.2]}
15... c5 {[%clk 0:00:47]} 16. exf6 {[%clk 0:02:20.8]} 16... Nxf6 {[%clk
0:00:47.6]} 17. dxc5 {[%clk 0:02:15.3]} 17... Qxc5 {[%clk 0:00:48.8]} 18. Be2
{[%clk 0:01:43.4]} 18... Rac8 {[%clk 0:00:47.6]} 19. Qb3 {[%clk 0:01:28.4]}
19... g5 {[%clk 0:00:43]} 20. Bg3 {[%clk 0:01:29]} 20... Nh5 {[%clk 0:00:40.5]}
21. Nd4 {[%clk 0:01:13.8]} 21... Nxg3 {[%clk 0:00:29.7]} 22. hxg3 {[%clk
0:01:15.7]} 22... Bf6 {[%clk 0:00:26]} 23. Nxe6 {[%clk 0:01:07.4]} 23... fxe6
{[%clk 0:00:25.3]} 24. Qxe6+ {[%clk 0:01:09.3]} 24... Kh8 {[%clk 0:00:26.4]} 25.
Ne4 {[%clk 0:00:58.3]} 25... Bxe4 {[%clk 0:00:25.2]} 26. Qxe4 {[%clk 0:01:00.2]}
26... Rce8 {[%clk 0:00:25.9]} 27. Qd3 {[%clk 0:00:55.6]} 27... Bxb2 {[%clk
0:00:25.6]} 28. Bh5 {[%clk 0:00:51.4]} 28... Rc8 {[%clk 0:00:22.1]} 29. Qb1
{[%clk 0:00:42.3]} 29... Bd4 {[%clk 0:00:19.9]} 30. Rd2 {[%clk 0:00:31]} 30...
Rcd8 {[%clk 0:00:20.6]} 31. Re2 {[%clk 0:00:31.2]} 31... Qxa3 {[%clk 0:00:19.5]}
32. Qg6 {[%clk 0:00:29.7]} 32... Rf6 {[%clk 0:00:17]} 33. Re8+ {[%clk
0:00:30.6]} 33... Rxe8 {[%clk 0:00:15.6]} 34. Qxe8+ {[%clk 0:00:32.5]} 34... Qf8
{[%clk 0:00:16.8]} 35. Qe4 {[%clk 0:00:29.2]} 35... Bxf2+ {[%clk 0:00:13.2]} 36.
Kh1 {[%clk 0:00:30.4]} 36... Bc5 {[%clk 0:00:11.4]} 37. Qe5 {[%clk 0:00:27.9]}
37... Be7 {[%clk 0:00:11.1]} 38. g4 {[%clk 0:00:21.7]} 38... Qg7 {[%clk
0:00:12]} 39. Qb8+ {[%clk 0:00:20.6]} 39... Bf8 {[%clk 0:00:12]} 40. Rxf6 {[%clk
0:00:19]} 40... Qxf6 {[%clk 0:00:13.9]} 41. Kg1 {[%clk 0:00:10.2]} 41... Kg7
{[%clk 0:00:11.4]} 42. Qa7+ {[%clk 0:00:10.8]} 42... Be7 {[%clk 0:00:12.1]} 43.
Be8 {[%clk 0:00:08.1]} 43... b4 {[%clk 0:00:12.5]} 44. Qb7 {[%clk 0:00:05.6]}
44... a5 {[%clk 0:00:12.6]} 45. Ba4 {[%clk 0:00:05.9]} 45... Qd4+ {[%clk
0:00:11.2]} 46. Kh2 {[%clk 0:00:06.4]} 46... Kf6 {[%clk 0:00:12.3]} 47. Qc6+
{[%clk 0:00:07.1]} 47... Bd6+ {[%clk 0:00:13.5]} 48. Kh3 {[%clk 0:00:07]} 48...
Qe3+ {[%clk 0:00:12.2]} 49. Qf3+ {[%clk 0:00:08.2]} 49... Qxf3+ {[%clk
0:00:13.4]} 50. gxf3 {[%clk 0:00:10.1]} 50... Ke5 {[%clk 0:00:14.8]} 51. Kg2
{[%clk 0:00:11.9]} 51... Kd4 {[%clk 0:00:16.2]} 52. Kf2 {[%clk 0:00:13.8]} 52...
Kc3 {[%clk 0:00:17.1]} 53. Ke2 {[%clk 0:00:15.1]} 53... b3 {[%clk 0:00:18.5]}
54. Kd1 {[%clk 0:00:16.5]} 54... b2 {[%clk 0:00:19.6]} 55. Bc2 {[%clk
0:00:18.1]} 55... a4 {[%clk 0:00:20.8]} 56. Bb1 {[%clk 0:00:19.5]} 56... a3
{[%clk 0:00:22]} 57. Ba2 {[%clk 0:00:20.9]} 57... Bf4 {[%clk 0:00:23.2]} 58. Bb1
{[%clk 0:00:21.9]} 58... Kb3 {[%clk 0:00:24.4]} 59. Bc2+ {[%clk 0:00:19.8]}
59... Ka2 {[%clk 0:00:25.4]} 0-1

[Event "*** Titled Tuesday Blitz"]
[Site "Chess.com"]
[Date "2019.03.05"]
[Round "6"]
[White "KRASAVCHIK2002"]
[Black "GrandGlacier"]
[Result "0-1"]
[WhiteElo "2303"]
[BlackElo "2164"]
[TimeControl "180+2"]
[EndTime "14:27:18 PST"]
[Termination "GrandGlacier won by checkmate"]

1. e4 {[%clk 0:03:01.9]} 1... c5 {[%clk 0:02:59.2]} 2. Nf3 {[%clk 0:03:02.9]}
2... e6 {[%clk 0:03:00]} 3. d4 {[%clk 0:03:04]} 3... cxd4 {[%clk 0:03:01.2]} 4.
Nxd4 {[%clk 0:03:05.9]} 4... Nc6 {[%clk 0:03:02.3]} 5. Nc3 {[%clk 0:03:01.3]}
5... Qc7 {[%clk 0:03:03]} 6. Be3 {[%clk 0:02:54.4]} 6... a6 {[%clk 0:03:02.5]}
7. Qd2 {[%clk 0:02:53.4]} 7... Nf6 {[%clk 0:03:02.2]} 8. O-O-O {[%clk
0:02:38.9]} 8... Be7 {[%clk 0:03:00.1]} 9. Be2 {[%clk 0:02:26.9]} 9... b5 {[%clk
0:02:55.7]} 10. Kb1 {[%clk 0:02:19.4]} 10... b4 {[%clk 0:02:54]} 11. Na4 {[%clk
0:02:13]} 11... Nxe4 {[%clk 0:02:45.4]} 12. Qd3 {[%clk 0:02:13.8]} 12... d5
{[%clk 0:02:45.4]} 13. f3 {[%clk 0:00:51.9]} 13... Nf6 {[%clk 0:02:03.7]} 14.
Bf4 {[%clk 0:00:38.7]} 14... Bd6 {[%clk 0:01:43.3]} 15. Bxd6 {[%clk 0:00:35.3]}
15... Qxd6 {[%clk 0:01:43.8]} 16. Nb6 {[%clk 0:00:21.6]} 16... Ne5 {[%clk
0:01:43.4]} 17. Qe3 {[%clk 0:00:18.8]} 17... Qxb6 {[%clk 0:01:42.2]} 18. Qxe5
{[%clk 0:00:20]} 18... O-O {[%clk 0:01:42.5]} 19. g4 {[%clk 0:00:21.4]} 19...
Nd7 {[%clk 0:01:40.9]} 20. Qg3 {[%clk 0:00:22.4]} 20... Nc5 {[%clk 0:01:39.3]}
21. h4 {[%clk 0:00:21.9]} 21... a5 {[%clk 0:01:35.6]} 22. h5 {[%clk 0:00:22.8]}
22... a4 {[%clk 0:01:26.7]} 23. g5 {[%clk 0:00:23.7]} 23... b3 {[%clk
0:01:24.1]} 24. cxb3 {[%clk 0:00:20.7]} 24... axb3 {[%clk 0:01:23.8]} 25. a3
{[%clk 0:00:22.2]} 25... Qb8 {[%clk 0:01:03.3]} 26. Qf2 {[%clk 0:00:17]} 26...
e5 {[%clk 0:01:01.2]} 27. Nb5 {[%clk 0:00:18.2]} 27... Bf5+ {[%clk 0:01:01.5]}
28. Ka1 {[%clk 0:00:19.5]} 28... Nd3 {[%clk 0:00:47.2]} 29. Bxd3 {[%clk
0:00:10.8]} 29... Bxd3 {[%clk 0:00:48.1]} 30. Nc3 {[%clk 0:00:11.6]} 30... e4
{[%clk 0:00:40.2]} 31. Nxd5 {[%clk 0:00:09.2]} 31... Qe5 {[%clk 0:00:39.3]} 32.
Nc3 {[%clk 0:00:08.4]} 32... Rxa3+ {[%clk 0:00:27.2]} 33. bxa3 {[%clk
0:00:09.1]} 33... b2+ {[%clk 0:00:28.6]} 34. Qxb2 {[%clk 0:00:09.9]} 34... Rb8
{[%clk 0:00:29.8]} 35. Nb5 {[%clk 0:00:08.4]} 35... Qc5 {[%clk 0:00:19.9]} 36.
Rc1 {[%clk 0:00:07.8]} 36... Qf8 {[%clk 0:00:17.6]} 37. a4 {[%clk 0:00:07.7]}
37... Ra8 {[%clk 0:00:17.6]} 38. Qb3 {[%clk 0:00:04.4]} 38... Qb8 {[%clk
0:00:12.9]} 39. g6 {[%clk 0:00:04]} 39... Bxb5 {[%clk 0:00:12.5]} 40. Qxf7+
{[%clk 0:00:03.6]} 40... Kh8 {[%clk 0:00:13.8]} 41. Qb3 {[%clk 0:00:03.3]} 41...
Rxa4+ {[%clk 0:00:14.4]} 42. Kb2 {[%clk 0:00:04.7]} 42... Qe5+ {[%clk
0:00:14.8]} 43. Rc3 {[%clk 0:00:05.5]} 43... exf3 {[%clk 0:00:12.4]} 44. Rd1
{[%clk 0:00:06.1]} 44... Be8 {[%clk 0:00:09.4]} 45. Rd8 {[%clk 0:00:06.5]} 45...
Re4 {[%clk 0:00:09.7]} 46. Qb8 {[%clk 0:00:05]} 46... Re2+ {[%clk 0:00:09.2]}
47. Kb3 {[%clk 0:00:05.6]} 47... Qe6+ {[%clk 0:00:10]} 48. Rc4 {[%clk
0:00:06.7]} 48... f2 {[%clk 0:00:10.7]} 49. Qf4 {[%clk 0:00:06]} 49... Re3+
{[%clk 0:00:06.5]} 50. Kb4 {[%clk 0:00:06.3]} 50... Qb6# {[%clk 0:00:07.6]} 0-1

[Event "*** Titled Tuesday Blitz"]
[Site "Chess.com"]
[Date "2019.03.05"]
[Round "6"]
[White "FrenchandSlav"]
[Black "SanchezKelvin"]
[Result "1-0"]
[WhiteElo "2291"]
[BlackElo "2488"]
[TimeControl "180+2"]
[EndTime "14:27:19 PST"]
[Termination "FrenchandSlav won by resignation"]

1. d4 {[%clk 0:03:01.9]} 1... Nf6 {[%clk 0:02:59.9]} 2. c4 {[%clk 0:03:03.4]}
2... g6 {[%clk 0:02:56.6]} 3. Nc3 {[%clk 0:03:04.6]} 3... Bg7 {[%clk 0:02:57.8]}
4. e4 {[%clk 0:03:06]} 4... d6 {[%clk 0:02:59.7]} 5. f3 {[%clk 0:03:07.4]} 5...
O-O {[%clk 0:03:01.6]} 6. Be3 {[%clk 0:03:08.8]} 6... Na6 {[%clk 0:03:02.2]} 7.
Nge2 {[%clk 0:03:06]} 7... c5 {[%clk 0:03:03]} 8. d5 {[%clk 0:03:02]} 8... e6
{[%clk 0:03:03.7]} 9. Ng3 {[%clk 0:03:02.7]} 9... exd5 {[%clk 0:03:01.5]} 10.
cxd5 {[%clk 0:03:03.5]} 10... Nc7 {[%clk 0:03:03.4]} 11. a4 {[%clk 0:03:04.3]}
11... b6 {[%clk 0:03:04.5]} 12. Be2 {[%clk 0:03:03.7]} 12... a6 {[%clk
0:03:05.5]} 13. O-O {[%clk 0:03:04.5]} 13... Rb8 {[%clk 0:03:06.6]} 14. Rb1
{[%clk 0:03:02.4]} 14... Nd7 {[%clk 0:03:03.8]} 15. Qd2 {[%clk 0:03:01.7]} 15...
h5 {[%clk 0:02:54]} 16. Rfc1 {[%clk 0:02:48.4]} 16... h4 {[%clk 0:02:54.1]} 17.
Nh1 {[%clk 0:02:49.6]} 17... h3 {[%clk 0:02:53.5]} 18. g3 {[%clk 0:02:50.8]}
18... Ne5 {[%clk 0:02:53.6]} 19. Nf2 {[%clk 0:02:48.5]} 19... f5 {[%clk
0:02:51.2]} 20. f4 {[%clk 0:02:42.2]} 20... Ng4 {[%clk 0:02:48.8]} 21. Nxg4
{[%clk 0:02:16.1]} 21... fxg4 {[%clk 0:02:50.7]} 22. b4 {[%clk 0:02:16.5]} 22...
Bd7 {[%clk 0:02:42.4]} 23. a5 {[%clk 0:01:55.7]} 23... cxb4 {[%clk 0:02:42]} 24.
Rxb4 {[%clk 0:01:57]} 24... bxa5 {[%clk 0:02:43.1]} 25. Rxb8 {[%clk 0:01:50]}
25... Qxb8 {[%clk 0:02:45]} 26. Bd4 {[%clk 0:01:47.8]} 26... Bxd4+ {[%clk
0:02:39.9]} 27. Qxd4 {[%clk 0:01:49.7]} 27... Qb4 {[%clk 0:02:40.6]} 28. Qxb4
{[%clk 0:01:19]} 28... axb4 {[%clk 0:02:39.6]} 29. Na2 {[%clk 0:01:20.5]} 29...
b3 {[%clk 0:02:30.4]} 30. Nb4 {[%clk 0:01:15.8]} 30... Bb5 {[%clk 0:02:19]} 31.
Bd1 {[%clk 0:01:11.6]} 31... b2 {[%clk 0:02:10.8]} 32. Rb1 {[%clk 0:01:12.2]}
32... a5 {[%clk 0:02:11.4]} 33. Na2 {[%clk 0:00:43.6]} 33... Re8 {[%clk
0:02:04.2]} 34. Rxb2 {[%clk 0:00:39.6]} 34... Rxe4 {[%clk 0:01:57.6]} 35. Nc3
{[%clk 0:00:40.3]} 35... Re1+ {[%clk 0:01:45.3]} 36. Kf2 {[%clk 0:00:41.5]}
36... Rh1 {[%clk 0:01:46.1]} 37. Ke3 {[%clk 0:00:42.8]} 37... Bc4 {[%clk
0:01:40.9]} 38. Bxg4 {[%clk 0:00:43.4]} 38... Bxd5 {[%clk 0:01:34.9]} 39. Bxh3
{[%clk 0:00:33.7]} 39... Rc1 {[%clk 0:01:34.5]} 40. Nxd5 {[%clk 0:00:33.5]}
40... Nxd5+ {[%clk 0:01:35.1]} 41. Kd2 {[%clk 0:00:34.8]} 41... Rc5 {[%clk
0:01:32.4]} 42. Be6+ {[%clk 0:00:31.9]} 42... Kg7 {[%clk 0:01:33.3]} 43. Rb7+
{[%clk 0:00:29.8]} 43... Kf6 {[%clk 0:01:34.2]} 44. Bxd5 {[%clk 0:00:27.7]}
44... Rxd5+ {[%clk 0:01:35.1]} 45. Ke3 {[%clk 0:00:29.3]} 45... Rc5 {[%clk
0:01:33.5]} 46. g4 {[%clk 0:00:22.4]} 46... g5 {[%clk 0:01:29.9]} 47. fxg5+
{[%clk 0:00:21.6]} 47... Kxg5 {[%clk 0:01:30.3]} 48. Rg7+ {[%clk 0:00:18.3]}
48... Kf6 {[%clk 0:01:31.4]} 49. Ra7 {[%clk 0:00:18.4]} 49... Ke5 {[%clk
0:01:31.6]} 50. h4 {[%clk 0:00:18.5]} 50... Rc3+ {[%clk 0:01:32.1]} 51. Kf2
{[%clk 0:00:19.7]} 51... Ra3 {[%clk 0:01:32.2]} 52. g5 {[%clk 0:00:19.5]} 52...
Kf5 {[%clk 0:01:33.3]} 53. Rf7+ {[%clk 0:00:16.3]} 53... Kg6 {[%clk 0:01:34.3]}
54. Rf6+ {[%clk 0:00:17.5]} 54... Kh5 {[%clk 0:01:35.6]} 55. Rh6+ {[%clk
0:00:18.9]} 55... Kg4 {[%clk 0:01:36.8]} 56. g6 {[%clk 0:00:20.1]} 56... Rf3+
{[%clk 0:01:34.1]} 57. Ke2 {[%clk 0:00:20.6]} 57... Rg3 {[%clk 0:01:32.9]} 58.
h5 {[%clk 0:00:19.5]} 58... a4 {[%clk 0:01:27.2]} 59. g7 {[%clk 0:00:18.1]}
59... Kf5 {[%clk 0:01:21.7]} 60. Rg6 {[%clk 0:00:18]} 1-0

[Event "*** Titled Tuesday Blitz"]
[Site "Chess.com"]
[Date "2019.03.05"]
[Round "6"]
[White "HrvojeZagreb"]
[Black "DACF2905"]
[Result "0-1"]
[WhiteElo "2113"]
[BlackElo "2085"]
[TimeControl "180+2"]
[EndTime "14:27:25 PST"]
[Termination "DACF2905 won by resignation"]

1. d4 {[%clk 0:02:40.2]} 1... Nf6 {[%clk 0:02:46.2]} 2. Bf4 {[%clk 0:02:39.6]}
2... e6 {[%clk 0:02:41.7]} 3. e3 {[%clk 0:02:39.8]} 3... c5 {[%clk 0:02:40]} 4.
Nd2 {[%clk 0:02:33.5]} 4... d5 {[%clk 0:02:38]} 5. c3 {[%clk 0:02:28.1]} 5...
Nc6 {[%clk 0:02:36]} 6. Ngf3 {[%clk 0:02:28.5]} 6... Qb6 {[%clk 0:02:33.1]} 7.
Qb3 {[%clk 0:02:27.6]} 7... c4 {[%clk 0:02:28.2]} 8. Qc2 {[%clk 0:02:24.8]} 8...
Nh5 {[%clk 0:02:22.2]} 9. Bg3 {[%clk 0:02:19.4]} 9... Nxg3 {[%clk 0:02:20.8]}
10. hxg3 {[%clk 0:02:21.3]} 10... h6 {[%clk 0:02:17.7]} 11. g4 {[%clk
0:02:22.3]} 11... g6 {[%clk 0:02:09.5]} 12. g5 {[%clk 0:02:17.6]} 12... h5
{[%clk 0:02:08.8]} 13. g4 {[%clk 0:02:18.6]} 13... Bg7 {[%clk 0:02:05.6]} 14.
gxh5 {[%clk 0:02:17]} 14... gxh5 {[%clk 0:02:02.5]} 15. O-O-O {[%clk 0:02:02.7]}
15... Bd7 {[%clk 0:01:58.9]} 16. e4 {[%clk 0:01:58.5]} 16... O-O-O {[%clk
0:01:56.5]} 17. e5 {[%clk 0:01:28]} 17... Ne7 {[%clk 0:01:52.6]} 18. Bh3 {[%clk
0:01:25]} 18... Qa6 {[%clk 0:01:44.9]} 19. Kb1 {[%clk 0:01:24]} 19... Ba4 {[%clk
0:01:43.1]} 20. b3 {[%clk 0:01:25]} 20... cxb3 {[%clk 0:01:43.1]} 21. axb3
{[%clk 0:01:25.8]} 21... Bb5 {[%clk 0:01:41.7]} 22. Bf1 {[%clk 0:01:10.6]} 22...
Kb8 {[%clk 0:01:36.2]} 23. Kb2 {[%clk 0:01:09.1]} 23... Bxf1 {[%clk 0:01:33.4]}
24. Nxf1 {[%clk 0:01:05.9]} 24... Rc8 {[%clk 0:01:31.7]} 25. Ne3 {[%clk
0:00:59.7]} 25... Rc7 {[%clk 0:01:21.3]} 26. Qd3 {[%clk 0:00:58.2]} 26... Qb6
{[%clk 0:01:04.5]} 27. Nd2 {[%clk 0:00:35.8]} 27... Ng6 {[%clk 0:01:02.7]} 28.
Ra1 {[%clk 0:00:18.4]} 28... h4 {[%clk 0:01:01.7]} 29. Ra4 {[%clk 0:00:17.8]}
29... h3 {[%clk 0:01:01.6]} 30. b4 {[%clk 0:00:18.8]} 30... Nf4 {[%clk
0:00:52.1]} 31. Qc2 {[%clk 0:00:19.3]} 31... Ne2 {[%clk 0:00:43.1]} 32. Nd1
{[%clk 0:00:20.4]} 32... Nxd4 {[%clk 0:00:42.2]} 33. Qd3 {[%clk 0:00:18.6]}
33... Nb5 {[%clk 0:00:40.6]} 34. f4 {[%clk 0:00:19.5]} 34... h2 {[%clk
0:00:28.7]} 35. Nb3 {[%clk 0:00:20.3]} 35... Qg1 {[%clk 0:00:17.3]} 36. Qf3
{[%clk 0:00:19.8]} 36... Rh4 {[%clk 0:00:10.8]} 37. Nc5 {[%clk 0:00:18.4]} 37...
a6 {[%clk 0:00:10.1]} 38. Ne3 {[%clk 0:00:12.4]} 38... Rxf4 {[%clk 0:00:07]} 39.
Qxf4 {[%clk 0:00:13.3]} 39... Qxh1 {[%clk 0:00:07.2]} 40. Ra1 {[%clk 0:00:07.3]}
40... Qxa1+ {[%clk 0:00:06.5]} 41. Kxa1 {[%clk 0:00:08.4]} 41... h1=Q+ {[%clk
0:00:07.9]} 42. Kb2 {[%clk 0:00:08.5]} 42... Nxc3 {[%clk 0:00:08.5]} 43. Kxc3
{[%clk 0:00:09.1]} 43... Qa1+ {[%clk 0:00:07.3]} 44. Kb3 {[%clk 0:00:09.8]}
44... Bxe5 {[%clk 0:00:05.5]} 45. Qf2 {[%clk 0:00:08.4]} 45... Qc3+ {[%clk
0:00:03.3]} 46. Ka2 {[%clk 0:00:09]} 46... a5 {[%clk 0:00:03.5]} 47. Qc2 {[%clk
0:00:08]} 47... Qxc2+ {[%clk 0:00:03.8]} 48. Nxc2 {[%clk 0:00:08.7]} 48... axb4
{[%clk 0:00:05.7]} 49. Nxb4 {[%clk 0:00:07.1]} 49... Rxc5 {[%clk 0:00:07.2]} 50.
Kb3 {[%clk 0:00:09]} 50... Kc7 {[%clk 0:00:08.1]} 51. Nd3 {[%clk 0:00:09.9]}
51... Bd6 {[%clk 0:00:08.4]} 52. Nxc5 {[%clk 0:00:10.6]} 52... Bxc5 {[%clk
0:00:09.9]} 53. Kc3 {[%clk 0:00:12.4]} 53... Be7 {[%clk 0:00:11.5]} 54. Kd4
{[%clk 0:00:11.9]} 54... Bxg5 {[%clk 0:00:12.8]} 55. Ke5 {[%clk 0:00:13.8]}
55... Be7 {[%clk 0:00:13.9]} 56. Kd4 {[%clk 0:00:13.9]} 56... Kd7 {[%clk
0:00:15.5]} 0-1